[Event "Early-Titled-Tuesday-Blitz-September-12-2023"]
[Site "Chess.com"]
[Date "2023.09.12"]
[Round "2"]
[White "carloseduar100"]
[Black "CristianS27"]
[Result "0-1"]
[WhiteElo "2282"]
[BlackElo "2511"]
[TimeControl "180+1"]
[EndTime "8:18:37 PDT"]
[Termination "CristianS27 won by checkmate"]

1. d4 {[%clk 0:03:00.9]} 1... Nf6 {[%clk 0:02:48.6]} 2. Bg5 {[%clk 0:03:01.1]}
2... Ne4 {[%clk 0:02:48.4]} 3. h4 {[%clk 0:03:01.3]} 3... c5 {[%clk 0:02:44.5]}
4. d5 {[%clk 0:03:00.7]} 4... Qb6 {[%clk 0:02:25.5]} 5. Nd2 {[%clk 0:03:00]}
5... Nxg5 {[%clk 0:02:21]} 6. hxg5 {[%clk 0:03:00.9]} 6... g6 {[%clk 0:02:20.2]}
7. e4 {[%clk 0:03:00.3]} 7... Bg7 {[%clk 0:02:18]} 8. Rb1 {[%clk 0:03:00]} 8...
d6 {[%clk 0:02:16.5]} 9. Ngf3 {[%clk 0:02:59.4]} 9... h6 {[%clk 0:02:16]} 10.
gxh6 {[%clk 0:02:59]} 10... Rxh6 {[%clk 0:02:16.9]} 11. Rxh6 {[%clk 0:02:58.5]}
11... Bxh6 {[%clk 0:02:17.8]} 12. Bd3 {[%clk 0:02:55.7]} 12... Bg4 {[%clk
0:02:16.9]} 13. Qe2 {[%clk 0:02:53.6]} 13... Nd7 {[%clk 0:02:09.4]} 14. c3
{[%clk 0:02:53.9]} 14... Ne5 {[%clk 0:02:05.4]} 15. Nc4 {[%clk 0:02:54.3]} 15...
Nxc4 {[%clk 0:02:00.2]} 16. Bxc4 {[%clk 0:02:54]} 16... Kf8 {[%clk 0:01:50.8]}
17. e5 {[%clk 0:02:48.9]} 17... Kg7 {[%clk 0:01:47.2]} 18. Kf1 {[%clk
0:02:47.7]} 18... Rh8 {[%clk 0:01:42.3]} 19. exd6 {[%clk 0:02:02.6]} 19... Qxd6
{[%clk 0:01:38.9]} 20. Re1 {[%clk 0:01:53.9]} 20... Bg5 {[%clk 0:01:34.4]} 21.
Qe5+ {[%clk 0:01:48.7]} 21... Bf6 {[%clk 0:00:42.8]} 22. Qxd6 {[%clk 0:01:39.1]}
22... exd6 {[%clk 0:00:43.7]} 23. Bb5 {[%clk 0:01:28.5]} 23... a6 {[%clk
0:00:36.1]} 24. Bd3 {[%clk 0:01:25.5]} 24... b5 {[%clk 0:00:32.8]} 25. a4 {[%clk
0:01:24.3]} 25... c4 {[%clk 0:00:32.1]} 26. Bc2 {[%clk 0:01:22.6]} 26... b4
{[%clk 0:00:31.6]} 27. cxb4 {[%clk 0:01:12.4]} 27... Bxb2 {[%clk 0:00:32.5]} 28.
Re4 {[%clk 0:01:10]} 28... Bxf3 {[%clk 0:00:20.3]} 29. gxf3 {[%clk 0:01:10.9]}
29... c3 {[%clk 0:00:19.4]} 30. b5 {[%clk 0:01:06.9]} 30... axb5 {[%clk
0:00:18.6]} 31. axb5 {[%clk 0:01:07.8]} 31... Rb8 {[%clk 0:00:16.6]} 32. Rb4
{[%clk 0:01:07.5]} 32... Rb6 {[%clk 0:00:15.1]} 33. Ke2 {[%clk 0:01:06.2]} 33...
Kf6 {[%clk 0:00:15.5]} 34. Kd3 {[%clk 0:01:06.2]} 34... Ke5 {[%clk 0:00:15.7]}
35. Kc4 {[%clk 0:01:05.1]} 35... Kf4 {[%clk 0:00:14]} 36. Ra4 {[%clk 0:01:02.8]}
36... Kxf3 {[%clk 0:00:12]} 37. Ra6 {[%clk 0:01:02.9]} 37... Rb8 {[%clk
0:00:09.4]} 38. Rxd6 {[%clk 0:01:03.4]} 38... Rb7 {[%clk 0:00:03.5]} 39. Rf6+
{[%clk 0:00:56.2]} 39... Ke2 {[%clk 0:00:04]} 40. f4 {[%clk 0:00:48.2]} 40...
Kd2 {[%clk 0:00:04.5]} 41. Kb3 {[%clk 0:00:48.5]} 41... Rxb5+ {[%clk 0:00:04.4]}
42. Kc4 {[%clk 0:00:47.9]} 42... Rb8 {[%clk 0:00:04]} 43. Ba4 {[%clk 0:00:42.6]}
43... Ra8 {[%clk 0:00:03.5]} 44. Kb3 {[%clk 0:00:33.6]} 44... Rxa4 {[%clk
0:00:02.6]} 45. Kxa4 {[%clk 0:00:28]} 45... c2 {[%clk 0:00:02.5]} 46. Rc6 {[%clk
0:00:19.7]} 46... Bc3 {[%clk 0:00:02.8]} 47. d6 {[%clk 0:00:20.6]} 47... c1=Q
{[%clk 0:00:03]} 48. d7 {[%clk 0:00:21.1]} 48... Qa1+ {[%clk 0:00:03.3]} 49. Kb5
{[%clk 0:00:21.2]} 49... Qa5+ {[%clk 0:00:03]} 50. Kc4 {[%clk 0:00:20.8]} 50...
Qb4+ {[%clk 0:00:03.3]} 51. Kd5 {[%clk 0:00:20.6]} 51... Qd4# {[%clk 0:00:04.2]}
0-1

[Event "Early-Titled-Tuesday-Blitz-September-12-2023"]
[Site "Chess.com"]
[Date "2023.09.12"]
[Round "2"]
[White "sebastianmarinp"]
[Black "Orlov_Oleg"]
[Result "1-0"]
[WhiteElo "2408"]
[BlackElo "2577"]
[TimeControl "180+1"]
[EndTime "8:18:39 PDT"]
[Termination "sebastianmarinp won on time"]

1. d4 {[%clk 0:03:00.1]} 1... Nf6 {[%clk 0:02:58.5]} 2. c4 {[%clk 0:02:59.2]}
2... e6 {[%clk 0:02:58.1]} 3. Nf3 {[%clk 0:02:57.8]} 3... Bb4+ {[%clk
0:02:56.9]} 4. Bd2 {[%clk 0:02:56.9]} 4... Be7 {[%clk 0:02:54]} 5. g3 {[%clk
0:02:54.7]} 5... d5 {[%clk 0:02:48.1]} 6. cxd5 {[%clk 0:02:52.5]} 6... exd5
{[%clk 0:02:48.5]} 7. Bg2 {[%clk 0:02:52.5]} 7... O-O {[%clk 0:02:45.5]} 8. O-O
{[%clk 0:02:51.5]} 8... c5 {[%clk 0:02:44.7]} 9. Nc3 {[%clk 0:02:34.4]} 9... Nc6
{[%clk 0:02:43.6]} 10. dxc5 {[%clk 0:02:34.2]} 10... Bxc5 {[%clk 0:02:44.1]} 11.
Bg5 {[%clk 0:02:34.4]} 11... d4 {[%clk 0:02:37]} 12. Bxf6 {[%clk 0:02:24.5]}
12... Qxf6 {[%clk 0:02:36]} 13. Ne4 {[%clk 0:02:24.5]} 13... Qe7 {[%clk
0:02:35.8]} 14. Nxc5 {[%clk 0:02:24.2]} 14... Qxc5 {[%clk 0:02:36.2]} 15. Qa4
{[%clk 0:02:12.8]} 15... Re8 {[%clk 0:02:30.1]} 16. Rac1 {[%clk 0:02:09.7]}
16... Qb6 {[%clk 0:02:14.2]} 17. Rc2 {[%clk 0:01:50.1]} 17... Bf5 {[%clk
0:02:12.1]} 18. Rd2 {[%clk 0:01:46.7]} 18... Rad8 {[%clk 0:02:10.6]} 19. Rfd1
{[%clk 0:01:43.5]} 19... d3 {[%clk 0:01:10.4]} 20. exd3 {[%clk 0:01:34.8]} 20...
Qb4 {[%clk 0:01:09.2]} 21. Qc2 {[%clk 0:01:09]} 21... Bg4 {[%clk 0:01:03.8]} 22.
a3 {[%clk 0:00:59.4]} 22... Qb6 {[%clk 0:01:03.2]} 23. Qc3 {[%clk 0:00:22.4]}
23... Bxf3 {[%clk 0:00:48.3]} 24. Bxf3 {[%clk 0:00:23.3]} 24... Nd4 {[%clk
0:00:48.2]} 25. Kg2 {[%clk 0:00:16]} 25... Nxf3 {[%clk 0:00:38.8]} 26. Kxf3
{[%clk 0:00:16.9]} 26... Rc8 {[%clk 0:00:39.1]} 27. Qb4 {[%clk 0:00:14.7]} 27...
Qc6+ {[%clk 0:00:39.4]} 28. Kg4 {[%clk 0:00:13.4]} 28... Qe6+ {[%clk 0:00:35.7]}
29. Kf3 {[%clk 0:00:12.5]} 29... Qd5+ {[%clk 0:00:36]} 30. Kg4 {[%clk
0:00:10.9]} 30... Qg2 {[%clk 0:00:32]} 31. f4 {[%clk 0:00:08]} 31... h5+ {[%clk
0:00:20.6]} 32. Kh4 {[%clk 0:00:06]} 32... Qf3 {[%clk 0:00:20.5]} 33. Kh3 {[%clk
0:00:02.6]} 33... Qg4+ {[%clk 0:00:15.7]} 34. Kg2 {[%clk 0:00:02]} 34... Re2+
{[%clk 0:00:15.9]} 35. Kg1 {[%clk 0:00:02.5]} 35... Qf3 {[%clk 0:00:16]} 36.
Rxe2 {[%clk 0:00:02.4]} 36... Qxe2 {[%clk 0:00:15.8]} 37. Qd2 {[%clk 0:00:02.2]}
37... Qf3 {[%clk 0:00:13.9]} 38. d4 {[%clk 0:00:02.4]} 1-0

[Event "Early-Titled-Tuesday-Blitz-September-12-2023"]
[Site "Chess.com"]
[Date "2023.09.12"]
[Round "2"]
[White "DmitryMaximov"]
[Black "MAGMAchess02"]
[Result "1/2-1/2"]
[WhiteElo "2736"]
[BlackElo "2448"]
[TimeControl "180+1"]
[EndTime "8:18:41 PDT"]
[Termination "Game drawn by repetition"]

1. e4 {[%clk 0:03:00.9]} 1... g6 {[%clk 0:02:59.5]} 2. d4 {[%clk 0:03:00.7]}
2... Bg7 {[%clk 0:02:59.9]} 3. Nc3 {[%clk 0:03:00.7]} 3... c6 {[%clk 0:03:00.3]}
4. h3 {[%clk 0:03:00]} 4... d5 {[%clk 0:03:00.2]} 5. e5 {[%clk 0:02:59.4]} 5...
h5 {[%clk 0:03:00]} 6. Bd3 {[%clk 0:02:57.1]} 6... Nh6 {[%clk 0:02:59.5]} 7. Bg5
{[%clk 0:02:54.5]} 7... Bf5 {[%clk 0:02:49.5]} 8. Bxh6 {[%clk 0:02:38.2]} 8...
Rxh6 {[%clk 0:02:50.4]} 9. Bxf5 {[%clk 0:02:37.6]} 9... gxf5 {[%clk 0:02:51.3]}
10. Nge2 {[%clk 0:02:31.9]} 10... e6 {[%clk 0:02:49]} 11. Nf4 {[%clk 0:02:30.7]}
11... h4 {[%clk 0:02:46.5]} 12. Qf3 {[%clk 0:02:22.5]} 12... Nd7 {[%clk
0:02:40.7]} 13. O-O-O {[%clk 0:02:20.1]} 13... Qe7 {[%clk 0:02:15.9]} 14. Kb1
{[%clk 0:02:04.5]} 14... O-O-O {[%clk 0:02:15.8]} 15. Rhe1 {[%clk 0:02:04.6]}
15... Kb8 {[%clk 0:02:12.7]} 16. Nce2 {[%clk 0:02:02.8]} 16... Rg8 {[%clk
0:02:09.6]} 17. Rc1 {[%clk 0:01:46.9]} 17... Nb6 {[%clk 0:02:09.1]} 18. b3
{[%clk 0:01:45.1]} 18... Qa3 {[%clk 0:01:59.7]} 19. Qc3 {[%clk 0:01:40.4]} 19...
Bf8 {[%clk 0:01:58.4]} 20. Qb2 {[%clk 0:01:30.9]} 20... Qa5 {[%clk 0:01:55.6]}
21. a4 {[%clk 0:01:24.4]} 21... Rh7 {[%clk 0:01:01.8]} 22. Red1 {[%clk
0:01:24.1]} 22... Be7 {[%clk 0:00:50.5]} 23. c3 {[%clk 0:01:23.2]} 23... Rhg7
{[%clk 0:00:48.9]} 24. Rd3 {[%clk 0:01:13.8]} 24... Qa6 {[%clk 0:00:41.1]} 25.
Qc2 {[%clk 0:01:11.6]} 25... Nd7 {[%clk 0:00:25.9]} 26. Kb2 {[%clk 0:01:07.5]}
26... c5 {[%clk 0:00:24.7]} 27. Re3 {[%clk 0:00:50.9]} 27... Nb6 {[%clk
0:00:16.3]} 28. Ra1 {[%clk 0:00:49.6]} 28... Rc8 {[%clk 0:00:15]} 29. a5 {[%clk
0:00:49]} 29... Nd7 {[%clk 0:00:08.3]} 30. Qd2 {[%clk 0:00:48.7]} 30... cxd4
{[%clk 0:00:06.4]} 31. cxd4 {[%clk 0:00:45.2]} 31... Qb5 {[%clk 0:00:05.5]} 32.
Rc3 {[%clk 0:00:41.6]} 32... Rgg8 {[%clk 0:00:04.8]} 33. Rac1 {[%clk 0:00:40.7]}
33... Bb4 {[%clk 0:00:04.3]} 34. Rxc8+ {[%clk 0:00:39.1]} 34... Rxc8 {[%clk
0:00:05.2]} 35. Rxc8+ {[%clk 0:00:38.9]} 35... Kxc8 {[%clk 0:00:06.1]} 36. Qc2+
{[%clk 0:00:33.8]} 36... Kb8 {[%clk 0:00:06.3]} 37. Nd3 {[%clk 0:00:33.7]} 37...
Qxa5 {[%clk 0:00:06.3]} 38. Nxb4 {[%clk 0:00:31.9]} 38... Qxb4 {[%clk
0:00:07.2]} 39. Qc3 {[%clk 0:00:28.1]} 39... Qb5 {[%clk 0:00:07.7]} 40. Qc2
{[%clk 0:00:23.8]} 40... Nb6 {[%clk 0:00:08]} 41. Kc1 {[%clk 0:00:23.5]} 41...
a5 {[%clk 0:00:08.1]} 42. g3 {[%clk 0:00:22.3]} 42... hxg3 {[%clk 0:00:07.4]}
43. fxg3 {[%clk 0:00:22.7]} 43... Qb4 {[%clk 0:00:07.8]} 44. Kd1 {[%clk
0:00:22.3]} 44... a4 {[%clk 0:00:07]} 45. bxa4 {[%clk 0:00:19.2]} 45... Nxa4
{[%clk 0:00:07.9]} 46. h4 {[%clk 0:00:08.2]} 46... Nb2+ {[%clk 0:00:08.2]} 47.
Kc1 {[%clk 0:00:08.7]} 47... Nc4 {[%clk 0:00:08.8]} 48. Qd3 {[%clk 0:00:07.2]}
48... Qb2+ {[%clk 0:00:07]} 49. Kd1 {[%clk 0:00:07.6]} 49... Qa1+ {[%clk
0:00:06.8]} 50. Kc2 {[%clk 0:00:08.1]} 50... Qb2+ {[%clk 0:00:03.8]} 51. Kd1
{[%clk 0:00:08.4]} 51... Qa1+ {[%clk 0:00:04.1]} 52. Kc2 {[%clk 0:00:07.9]}
52... Qb2+ {[%clk 0:00:04.4]} 53. Kd1 {[%clk 0:00:08.2]} 1/2-1/2

[Event "Early-Titled-Tuesday-Blitz-September-12-2023"]
[Site "Chess.com"]
[Date "2023.09.12"]
[Round "2"]
[White "karinachess1"]
[Black "Chessmissile07"]
[Result "1-0"]
[WhiteElo "2600"]
[BlackElo "2895"]
[TimeControl "180+1"]
[EndTime "8:18:42 PDT"]
[Termination "karinachess1 won by checkmate"]

1. d4 {[%clk 0:03:00.9]} 1... d5 {[%clk 0:02:58.7]} 2. c4 {[%clk 0:03:00.2]}
2... c6 {[%clk 0:02:58.5]} 3. Nf3 {[%clk 0:02:59.7]} 3... Nf6 {[%clk 0:02:57.8]}
4. e3 {[%clk 0:02:59.6]} 4... Bf5 {[%clk 0:02:49]} 5. Nc3 {[%clk 0:02:58.2]}
5... e6 {[%clk 0:02:48.6]} 6. Nh4 {[%clk 0:02:58.4]} 6... Be4 {[%clk 0:02:47.8]}
7. f3 {[%clk 0:02:58.3]} 7... Bg6 {[%clk 0:02:46.7]} 8. Qb3 {[%clk 0:02:58.6]}
8... Qc7 {[%clk 0:02:37]} 9. Nxg6 {[%clk 0:02:58.6]} 9... hxg6 {[%clk
0:02:37.1]} 10. cxd5 {[%clk 0:02:59]} 10... exd5 {[%clk 0:02:32.8]} 11. Bd2
{[%clk 0:02:59.2]} 11... Bd6 {[%clk 0:02:31.2]} 12. O-O-O {[%clk 0:02:48.2]}
12... Nbd7 {[%clk 0:01:58.3]} 13. e4 {[%clk 0:02:32.1]} 13... dxe4 {[%clk
0:01:58]} 14. fxe4 {[%clk 0:02:32.6]} 14... Bf4 {[%clk 0:01:58.5]} 15. Bc4
{[%clk 0:02:06.5]} 15... Bxd2+ {[%clk 0:01:58.3]} 16. Rxd2 {[%clk 0:02:07.4]}
16... Nb6 {[%clk 0:01:57.8]} 17. e5 {[%clk 0:01:59.4]} 17... Nfd5 {[%clk
0:01:44.5]} 18. Bxd5 {[%clk 0:01:48.6]} 18... cxd5 {[%clk 0:01:39.5]} 19. Rc2
{[%clk 0:01:46.5]} 19... Qd7 {[%clk 0:01:15.4]} 20. Kb1 {[%clk 0:01:13.7]} 20...
O-O {[%clk 0:01:12.9]} 21. h4 {[%clk 0:00:52.3]} 21... Rac8 {[%clk 0:00:53]} 22.
h5 {[%clk 0:00:50.6]} 22... gxh5 {[%clk 0:00:53.3]} 23. Rxh5 {[%clk 0:00:35.6]}
23... Qg4 {[%clk 0:00:53.6]} 24. Rh1 {[%clk 0:00:29]} 24... Qxd4 {[%clk
0:00:53.1]} 25. Nb5 {[%clk 0:00:21.4]} 25... Qe4 {[%clk 0:00:39.1]} 26. Nd6
{[%clk 0:00:16.7]} 26... Qxc2+ {[%clk 0:00:38.3]} 27. Qxc2 {[%clk 0:00:17.6]}
27... Rxc2 {[%clk 0:00:38.5]} 28. Kxc2 {[%clk 0:00:18.5]} 28... Rb8 {[%clk
0:00:18.8]} 29. b3 {[%clk 0:00:17.2]} 29... Nd7 {[%clk 0:00:18.3]} 30. Re1
{[%clk 0:00:14.5]} 30... Nc5 {[%clk 0:00:18.5]} 31. Kc3 {[%clk 0:00:12.2]} 31...
Ne6 {[%clk 0:00:18.2]} 32. g3 {[%clk 0:00:10.7]} 32... b6 {[%clk 0:00:18.3]} 33.
Kd3 {[%clk 0:00:10.5]} 33... Rd8 {[%clk 0:00:16.8]} 34. Rc1 {[%clk 0:00:07.5]}
34... f6 {[%clk 0:00:16]} 35. Nb7 {[%clk 0:00:07.6]} 35... Rd7 {[%clk 0:00:15]}
36. Rc8+ {[%clk 0:00:07.3]} 36... Kh7 {[%clk 0:00:15.3]} 37. Re8 {[%clk
0:00:01.9]} 37... Nc7 {[%clk 0:00:09.8]} 38. e6 {[%clk 0:00:02.4]} 38... Rd6
{[%clk 0:00:03.5]} 39. Nxd6 {[%clk 0:00:02.1]} 39... Nxe8 {[%clk 0:00:03.7]} 40.
Nxe8 {[%clk 0:00:03]} 40... Kg6 {[%clk 0:00:04.4]} 41. Nc7 {[%clk 0:00:03.6]}
41... Kf5 {[%clk 0:00:03.8]} 42. e7 {[%clk 0:00:04.2]} 42... g5 {[%clk 0:00:04]}
43. e8=Q {[%clk 0:00:05.1]} 43... Kg4 {[%clk 0:00:04.9]} 44. Qe6+ {[%clk
0:00:05.7]} 44... f5 {[%clk 0:00:05.5]} 45. Nxd5 {[%clk 0:00:05.4]} 45... b5
{[%clk 0:00:05.5]} 46. Ne3+ {[%clk 0:00:05.6]} 46... Kxg3 {[%clk 0:00:05.8]} 47.
Qxf5 {[%clk 0:00:06.2]} 47... b4 {[%clk 0:00:05.3]} 48. Qg4+ {[%clk 0:00:06.5]}
48... Kf2 {[%clk 0:00:05.5]} 49. Qg2+ {[%clk 0:00:06.9]} 49... Ke1 {[%clk
0:00:06.4]} 50. Qf1# {[%clk 0:00:07.5]} 1-0

[Event "Early-Titled-Tuesday-Blitz-September-12-2023"]
[Site "Chess.com"]
[Date "2023.09.12"]
[Round "2"]
[White "shimastream"]
[Black "DavidLana1987"]
[Result "1-0"]
[WhiteElo "2959"]
[BlackElo "2621"]
[TimeControl "180+1"]
[EndTime "8:18:45 PDT"]
[Termination "shimastream won by resignation"]

1. b3 {[%clk 0:03:00.9]} 1... d5 {[%clk 0:02:56.4]} 2. Bb2 {[%clk 0:03:00.3]}
2... Nf6 {[%clk 0:02:57.1]} 3. Nf3 {[%clk 0:02:56.7]} 3... e6 {[%clk 0:02:56.7]}
4. e3 {[%clk 0:02:44.3]} 4... Bd6 {[%clk 0:02:56.7]} 5. g4 {[%clk 0:02:44]} 5...
Nc6 {[%clk 0:02:43.2]} 6. g5 {[%clk 0:02:43.1]} 6... Ne4 {[%clk 0:02:43.4]} 7.
h4 {[%clk 0:02:36.6]} 7... e5 {[%clk 0:02:36]} 8. d3 {[%clk 0:02:27.9]} 8... Nc5
{[%clk 0:02:33.7]} 9. Nbd2 {[%clk 0:02:25.4]} 9... Bg4 {[%clk 0:02:33.2]} 10.
Be2 {[%clk 0:02:24.6]} 10... Qd7 {[%clk 0:02:20.1]} 11. a3 {[%clk 0:02:13.4]}
11... a5 {[%clk 0:02:15.4]} 12. d4 {[%clk 0:02:08.9]} 12... exd4 {[%clk
0:02:13.9]} 13. Nxd4 {[%clk 0:02:09.8]} 13... Bxe2 {[%clk 0:02:13.7]} 14. Qxe2
{[%clk 0:02:10.2]} 14... Nxd4 {[%clk 0:02:11.1]} 15. Bxd4 {[%clk 0:02:11.1]}
15... Ne6 {[%clk 0:02:09.1]} 16. Bb2 {[%clk 0:02:11.1]} 16... O-O-O {[%clk
0:02:08.5]} 17. a4 {[%clk 0:01:51.3]} 17... d4 {[%clk 0:01:59.6]} 18. O-O-O
{[%clk 0:01:49]} 18... dxe3 {[%clk 0:01:58.2]} 19. fxe3 {[%clk 0:01:48.9]} 19...
Qc6 {[%clk 0:01:53]} 20. Nc4 {[%clk 0:01:43.6]} 20... Bb4 {[%clk 0:01:52.4]} 21.
Ne5 {[%clk 0:01:40.5]} 21... Qe8 {[%clk 0:01:45.9]} 22. Rxd8+ {[%clk 0:01:23.9]}
22... Nxd8 {[%clk 0:01:45.4]} 23. Rd1 {[%clk 0:01:20.7]} 23... Bd6 {[%clk
0:01:46.1]} 24. Nc4 {[%clk 0:01:18.8]} 24... Bb4 {[%clk 0:01:45.5]} 25. Bxg7
{[%clk 0:01:17.4]} 25... Rg8 {[%clk 0:01:44.3]} 26. Bf6 {[%clk 0:01:17.2]} 26...
Nc6 {[%clk 0:01:44.2]} 27. Qg4+ {[%clk 0:01:11.1]} 27... Kb8 {[%clk 0:01:43.5]}
28. Qd7 {[%clk 0:01:09.3]} 28... Qe4 {[%clk 0:01:36.4]} 29. Qxf7 {[%clk
0:01:04.8]} 29... Rf8 {[%clk 0:01:36.5]} 30. Qd5 {[%clk 0:01:03]} 30... Qxh4
{[%clk 0:01:35.7]} 31. e4 {[%clk 0:00:59.5]} 31... Qf4+ {[%clk 0:01:31.8]} 32.
Kb1 {[%clk 0:00:59]} 32... h6 {[%clk 0:01:29.2]} 33. Bg7 {[%clk 0:00:53.9]}
33... Rd8 {[%clk 0:01:27.7]} 34. Qxd8+ {[%clk 0:00:49.6]} 34... Nxd8 {[%clk
0:01:28.6]} 35. Rxd8+ {[%clk 0:00:50.3]} 35... Ka7 {[%clk 0:01:29.2]} 36. gxh6
{[%clk 0:00:50.9]} 36... Qxe4 {[%clk 0:01:29.3]} 37. Bd4+ {[%clk 0:00:46.7]}
37... c5 {[%clk 0:01:26.3]} 38. Bg7 {[%clk 0:00:43.8]} 38... Be1 {[%clk
0:01:22.6]} 39. Rd7 {[%clk 0:00:35.8]} 39... Qf5 {[%clk 0:01:08.6]} 40. Re7
{[%clk 0:00:20.9]} 40... Bh4 {[%clk 0:01:00.3]} 41. Re8 {[%clk 0:00:15.3]} 41...
Qf1+ {[%clk 0:00:55.9]} 42. Ka2 {[%clk 0:00:13.2]} 42... Qf5 {[%clk 0:00:55.3]}
43. Re2 {[%clk 0:00:06]} 43... Qg6 {[%clk 0:00:50.1]} 44. Rh2 {[%clk 0:00:03.6]}
44... Qg3 {[%clk 0:00:44.6]} 45. h7 {[%clk 0:00:02.9]} 45... Qxh2 {[%clk
0:00:44.7]} 46. h8=Q {[%clk 0:00:03.5]} 46... Qxc2+ {[%clk 0:00:45.3]} 47. Bb2
{[%clk 0:00:04.1]} 47... Be1 {[%clk 0:00:43.2]} 48. Qe5 {[%clk 0:00:04.3]} 48...
Bb4 {[%clk 0:00:42.4]} 49. Nd6 {[%clk 0:00:04.7]} 49... Qd3 {[%clk 0:00:38.7]}
50. Nb5+ {[%clk 0:00:04.7]} 50... Ka6 {[%clk 0:00:37.9]} 51. Qb8 {[%clk
0:00:02.4]} 51... Kb6 {[%clk 0:00:34.9]} 52. Qc7+ {[%clk 0:00:02.2]} 52... Ka6
{[%clk 0:00:35.1]} 53. Qc8 {[%clk 0:00:01.8]} 53... Kb6 {[%clk 0:00:31.7]} 54.
Qe6+ {[%clk 0:00:01.9]} 1-0

[Event "Early-Titled-Tuesday-Blitz-September-12-2023"]
[Site "Chess.com"]
[Date "2023.09.12"]
[Round "2"]
[White "bazar-wokzal"]
[Black "Al_Shima"]
[Result "0-1"]
[WhiteElo "2515"]
[BlackElo "2344"]
[TimeControl "180+1"]
[EndTime "8:18:45 PDT"]
[Termination "Al_Shima won by resignation"]

1. e4 {[%clk 0:03:00.9]} 1... d5 {[%clk 0:02:11.9]} 2. exd5 {[%clk 0:03:00.7]}
2... Nf6 {[%clk 0:02:11.9]} 3. Bb5+ {[%clk 0:03:00]} 3... Bd7 {[%clk 0:02:11.8]}
4. Bc4 {[%clk 0:03:00]} 4... Bg4 {[%clk 0:02:11.5]} 5. f3 {[%clk 0:03:00.4]}
5... Bc8 {[%clk 0:02:11.1]} 6. Nc3 {[%clk 0:03:00.6]} 6... Nbd7 {[%clk
0:02:11.5]} 7. Qe2 {[%clk 0:03:00.9]} 7... Nb6 {[%clk 0:02:05]} 8. Qd3 {[%clk
0:03:01]} 8... g6 {[%clk 0:02:04.5]} 9. Bb3 {[%clk 0:03:00.8]} 9... a6 {[%clk
0:02:04.5]} 10. Nge2 {[%clk 0:02:52.8]} 10... c6 {[%clk 0:02:02.5]} 11. dxc6
{[%clk 0:02:37.9]} 11... Qxd3 {[%clk 0:02:01.8]} 12. cxd3 {[%clk 0:02:38.8]}
12... bxc6 {[%clk 0:02:01.6]} 13. d4 {[%clk 0:02:34.6]} 13... Bg7 {[%clk
0:01:59]} 14. d3 {[%clk 0:02:34.1]} 14... O-O {[%clk 0:01:58.4]} 15. Be3 {[%clk
0:02:34]} 15... Nfd5 {[%clk 0:01:51.4]} 16. Bf2 {[%clk 0:02:29.7]} 16... a5
{[%clk 0:01:47.1]} 17. O-O {[%clk 0:02:09.2]} 17... a4 {[%clk 0:01:43.9]} 18.
Bc4 {[%clk 0:02:08.2]} 18... a3 {[%clk 0:01:39.3]} 19. b3 {[%clk 0:02:06]} 19...
Nxc3 {[%clk 0:01:25.8]} 20. Nxc3 {[%clk 0:02:05.3]} 20... Rd8 {[%clk 0:01:24.5]}
21. Ne2 {[%clk 0:02:04.5]} 21... Nd5 {[%clk 0:01:20.6]} 22. Rad1 {[%clk
0:01:52.8]} 22... Bh6 {[%clk 0:01:19.5]} 23. Bxd5 {[%clk 0:01:37.4]} 23... cxd5
{[%clk 0:01:08.4]} 24. f4 {[%clk 0:01:37.5]} 24... Bg4 {[%clk 0:01:05.7]} 25.
Rfe1 {[%clk 0:01:34.5]} 25... Bxe2 {[%clk 0:00:46.9]} 26. Rxe2 {[%clk
0:01:34.2]} 26... e6 {[%clk 0:00:47]} 27. g3 {[%clk 0:01:25.4]} 27... Rdc8
{[%clk 0:00:46.8]} 28. Kg2 {[%clk 0:01:15.7]} 28... Rc6 {[%clk 0:00:45.6]} 29.
Be1 {[%clk 0:01:09.9]} 29... Bf8 {[%clk 0:00:43.2]} 30. Kf3 {[%clk 0:01:05.6]}
30... Rac8 {[%clk 0:00:42.5]} 31. Ke3 {[%clk 0:01:00.6]} 31... Rc2 {[%clk
0:00:36.9]} 32. Rxc2 {[%clk 0:00:44.5]} 32... Rxc2 {[%clk 0:00:37.8]} 33. Rd2
{[%clk 0:00:44.9]} 33... Rc1 {[%clk 0:00:36.6]} 34. Ke2 {[%clk 0:00:43.6]} 34...
Bb4 {[%clk 0:00:33.5]} 35. Rd1 {[%clk 0:00:43.3]} 35... Rc2+ {[%clk 0:00:32.2]}
36. Ke3 {[%clk 0:00:42.5]} 36... Bxe1 {[%clk 0:00:28.4]} 37. Rxe1 {[%clk
0:00:42.3]} 37... Rxa2 {[%clk 0:00:28.3]} 38. Rc1 {[%clk 0:00:42.4]} 38... Rb2
{[%clk 0:00:27.3]} 39. Rc8+ {[%clk 0:00:37.5]} 39... Kg7 {[%clk 0:00:27.1]} 40.
Ra8 {[%clk 0:00:37.2]} 40... Rxb3 {[%clk 0:00:26.1]} 41. g4 {[%clk 0:00:36.1]}
41... Rb2 {[%clk 0:00:22.3]} 42. Rxa3 {[%clk 0:00:33.2]} 42... Rxh2 {[%clk
0:00:22]} 43. g5 {[%clk 0:00:33.7]} 43... h6 {[%clk 0:00:20.2]} 44. gxh6+ {[%clk
0:00:33.4]} 44... Rxh6 {[%clk 0:00:21.1]} 45. Ra7 {[%clk 0:00:33.2]} 45... Kf6
{[%clk 0:00:21.4]} 46. Rb7 {[%clk 0:00:32.9]} 46... Rh7 {[%clk 0:00:20.9]} 47.
Kf3 {[%clk 0:00:32.5]} 47... Kf5 {[%clk 0:00:20.9]} 48. Ke3 {[%clk 0:00:30.6]}
48... Rh3+ {[%clk 0:00:20.3]} 49. Ke2 {[%clk 0:00:30.7]} 49... f6 {[%clk
0:00:19.6]} 50. Rf7 {[%clk 0:00:30.4]} 50... Rh4 {[%clk 0:00:19.2]} 51. Ke3
{[%clk 0:00:30]} 51... Rxf4 {[%clk 0:00:18.5]} 52. Rxf6+ {[%clk 0:00:25.5]}
52... Kxf6 {[%clk 0:00:18.4]} 53. Kxf4 {[%clk 0:00:26.4]} 53... g5+ {[%clk
0:00:18.9]} 54. Kg4 {[%clk 0:00:26.9]} 54... Kg6 {[%clk 0:00:19.8]} 55. Kf3
{[%clk 0:00:22.7]} 55... Kf5 {[%clk 0:00:20.7]} 56. Kg3 {[%clk 0:00:23.1]} 56...
g4 {[%clk 0:00:21.6]} 0-1